bitfinex/quotes_ETHUSD_20211001
["timestamp","ask_amount","ask_price","bid_price","bid_amount"]
[1633096242652,0.41547466,3211.4,3211.1,4.00802245]
[1633096243051,0.41547466,3211.4,3211.1,3.11435]
[1633096244251,0.41547466,3211.4,3211.1,3.99982088]
[1633096244851,0.41547466,3211.4,3211.1,3.11435]
[1633096245854,0.41547466,3211.4,3211.2,0.98078482]
[1633096246852,3.222387,3211.8,3211.2,0.98078482]
[1633096247253,3.222387,3211.8,3211.7,0.72814333]
[1633096247651,3.222387,3211.8,3211.7,5.39798333]
[1633096248051,3.222387,3211.8,3211.7,4.66984]
[1633096253250,3.22368882,3211.8,3211.7,4.66984]
[1633096259055,3.12368882,3211.8,3211.7,4.66984]
[1633096259657,3.12368882,3211.8,3211.6,6.22645]
[1633096259857,3.13094981,3211.7,3211.4,6.22658]
[1633096260062,3.12368882,3211.8,3211.4,6.22658]
[1633096261059,3.12368882,3211.8,3211.6,1.294]
[1633096261329,3.12368882,3211.8,3211.6,0.15]
[1633096261462,3.12368882,3211.8,3211.7,0.45707143]
[1633096261665,0.003,3212.0,3211.8,0.9433817]
[1633096261861,0.003,3212.0,3211.9,1.0986352]
[1633096262060,0.003,3212.0,3211.9,5.7673552]
[1633096262259,0.003,3212.5,3211.9,5.7673552]
[1633096262461,0.003,3212.5,3212.1,3.11248]
[1633096263260,0.003,3212.5,3212.4,0.71195613]
[1633096263661,0.00427025,3212.5,3212.4,0.71195613]
[1633096271066,0.001,3213.2,3213.0,2.483]
[1633096271275,0.001,3213.2,3213.1,1.28031763]
[1633096271465,0.86781508,3214.0,3213.1,1.28031763]
[1633096271466,0.51905178,3213.9,3213.1,1.28031763]
[1633096271665,0.51905178,3213.9,3213.4,3.1111993]
[1633096271666,2.4104604,3213.9,3213.4,3.1111993]
[1633096271867,1.89113436,3213.8,3213.4,3.1111993]
[1633096272070,0.86491298,3214.1,3213.6,7.77824]
[1633096272071,1.88535679,3213.7,3213.6,7.77824]
[1633096272266,1.73284424,3214.5,3213.6,15.00773]
[1633096272267,0.8654638,3214.4,3213.6,15.00773]
[1633096272470,0.003,3214.5,3213.6,15.00773]
[1633096272471,1.88061257,3214.3,3213.6,9.4623]
[1633096272666,1.88063291,3214.2,3213.6,9.4623]
[1633096272868,1.88058789,3214.1,3213.6,9.4623]
[1633096273068,0.86841004,3214.5,3213.6,9.4623]
[1633096273342,0.86841004,3214.5,3214.2,3.11132]
[1633096273473,0.86841004,3214.5,3214.2,2.80018801]
[1633096273474,0.86478584,3214.3,3214.2,2.80018801]
[1633096273673,0.86478584,3214.3,3213.5,0.003]
[1633096273869,0.86414383,3214.2,3213.5,0.003]
[1633096274472,5.9621,3213.9,3213.5,0.003]
[1633096274671,5.9621,3213.9,3213.0,2.486]
[1633096274672,0.079913,3213.6,3213.0,2.486]
[1633096275269,0.94225515,3213.6,3213.0,2.486]
[1633096275472,0.72511818,3213.4,3213.0,2.486]
[1633096276469,4.66958,3213.3,3213.0,2.486]
[1633096276868,1.294,3213.2,3213.0,2.486]
[1633096277071,6.95122818,3213.4,3213.0,2.486]
[1633096277672,19.36922,3213.1,3213.0,2.486]
[1633096277869,4.66922,3213.1,3213.0,2.486]
[1633096279071,5.96322,3213.1,3213.0,2.486]
[1633096279336,4.66922,3213.1,3213.0,2.486]
[1633096280274,2.834466,3213.0,3212.4,0.003]
[1633096280478,2.834466,3213.0,3211.5,0.003]
[1633096280479,5.75448631,3212.2,3211.5,0.003]
[1633096280675,6.91518631,3212.2,3211.5,0.003]
[1633096280874,6.91518631,3212.2,3211.4,0.006]
[1633096281074,6.91518631,3212.2,3210.9,0.009]
[1633096281273,10.13236608,3212.2,3210.9,0.009]
[1633096281474,11.2903046,3212.2,3211.4,6.2278321]
[1633096281674,0.96705962,3212.1,3211.5,0.98870016]
[1633096281874,6.91518631,3212.2,3211.5,0.99470016]
[1633096281875,5.75448631,3212.2,3211.5,0.99470016]
[1633096282072,5.75448631,3212.2,3211.6,0.003]
[1633096282342,4.67087,3211.9,3211.6,0.003]
[1633096283078,5.75448631,3212.2,3211.6,1.21121778]
[1633096283477,5.75448631,3212.2,3211.7,0.003]
[1633096284677,0.00104023,3212.1,3211.8,3.11355]
[1633096284882,0.00104023,3212.1,3211.8,6.22717]
[1633096285079,0.00104023,3212.1,3211.9,0.003]
[1633096290483,5.63119503,3212.1,3211.9,0.003]
[1633096291347,0.96057503,3212.1,3211.9,0.003]
[1633096291487,0.00104023,3212.1,3211.9,0.003]
[1633096292287,0.00104023,3212.1,3212.0,0.83103777]
[1633096292686,5.75448631,3212.2,3212.0,0.83403777]
[1633096292687,6.47581978,3212.2,3212.0,0.83403777]
[1633096294284,11.14627978,3212.2,3212.0,0.83403777]
[1633096294883,10.37598654,3212.2,3212.0,0.83403777]
[1633096295286,0.00094893,3212.1,3212.0,0.83403777]
[1633096302687,0.00094893,3212.1,3212.0,1.74416995]
[1633096302887,0.00094893,3212.1,3212.0,0.83403777]
[1633096307891,1.83259731,3212.1,3212.0,0.83403777]
[1633096308090,0.00094893,3212.1,3212.0,0.83403777]
[1633096308393,1.83280387,3212.1,3212.0,0.83403777]
[1633096308795,1.83280387,3212.1,3211.5,3.11679]
[1633096308796,1.83280387,3212.1,3211.5,0.003]
[1633096308797,1.54852452,3212.0,3211.5,0.003]
[1633096309095,1.54852452,3212.0,3210.5,3.11441]
[1633096309096,14.80461118,3211.6,3210.5,3.11441]
[1633096309360,14.80461118,3211.6,3210.6,0.59551987]
[1633096309361,6.25823203,3211.5,3210.6,0.59551987]
[1633096309494,0.079913,3210.9,3210.6,0.006]
[1633096309694,0.86456558,3210.7,3210.1,1.94267248]
[1633096309894,4.67272,3210.4,3210.2,0.5955703]
[1633096310091,4.67272,3210.4,3210.2,0.5985703]
[1633096310293,4.67272,3210.4,3210.3,0.009]
[1633096310492,4.67272,3210.4,3210.3,3.71970195]
[1633096311699,4.67272,3210.4,3210.3,0.60455195]
[1633096311894,6.23058,3210.6,3210.3,0.60455195]
[1633096312094,0.86456558,3210.7,3210.4,0.59540793]
[1633096312360,0.079913,3210.9,3210.4,0.60440793]
[1633096312494,0.079913,3210.9,3210.5,0.009]
[1633096312701,1.53104707,3211.5,3210.5,0.009]
[1633096312897,4.67247,3210.9,3210.5,0.009]
[1633096313296,5.49584735,3210.9,3210.5,0.009]
[1633096313895,5.49584735,3210.9,3210.6,3.11494]
[1633096314297,4.67247,3210.9,3210.7,0.006]
[1633096314496,4.67247,3210.9,3210.7,0.002405]
[1633096317097,0.00200417,3210.8,3210.7,0.002405]
[1633096317502,3.95200417,3210.8,3210.7,0.002405]
[1633096317703,0.00200417,3210.8,3210.7,0.002405]
[1633096317897,0.00200417,3210.8,3210.5,0.005405]
[1633096318098,4.67259,3210.7,3210.5,0.005405]
[1633096318498,0.00200417,3210.8,3210.5,3.120445]
[1633096318898,0.00200417,3210.8,3210.6,0.002405]
[1633096319299,0.00200417,3210.8,3210.7,0.89184471]
[1633096319697,0.00200417,3210.8,3210.7,0.89424971]
[1633096321100,6.22954,3211.3,3210.7,0.89424971]
[1633096321500,6.22954,3211.3,3210.8,0.002405]
[1633096322102,0.00200417,3211.4,3211.2,0.96288135]
[1633096322300,4.67362417,3211.4,3211.2,0.96288135]
[1633096322501,0.00200417,3211.4,3211.3,0.002405]
[1633096323702,4.67349417,3211.4,3211.3,0.002405]
[1633096324902,0.00200417,3211.4,3211.3,0.002405]
[1633096327108,0.00284001,3211.4,3211.3,0.002405]
[1633096327371,0.00284001,3211.4,3211.3,1.296405]
[1633096327507,0.00284001,3211.4,3211.3,2.34766997]
[1633096328110,3.229165,3212.5,3212.3,1.49376971]
[1633096328111,0.004,3212.5,3212.3,1.49376971]
[1633096328309,0.004,3212.5,3212.3,7.69476971]
[1633096328515,0.004,3212.5,3212.4,1.294]
[1633096329111,0.004,3212.5,3212.3,11.09762825]
[1633096329308,0.004,3212.5,3212.3,4.60719231]
[1633096330506,0.004,3212.5,3212.3,1.49376971]
[1633096330707,1.83175793,3212.4,3212.3,1.49376971]
[1633096330906,1.20803601,3212.2,3211.5,0.002405]
[1633096331214,1.20803601,3212.2,3211.4,0.002405]
[1633096331216,0.079913,3211.8,3211.4,0.002405]
[1633096331409,16.74506531,3211.5,3211.4,0.002405]
[1633096331607,16.74506531,3211.5,3210.5,0.96839432]
[1633096331608,16.74506531,3211.5,3210.5,0.96539432]
[1633096331609,18.18776531,3211.5,3210.5,0.96539432]
[1633096331809,18.18776531,3211.5,3210.6,0.59993094]
[1633096332004,18.18776531,3211.5,3210.6,0.005405]
[1633096332206,1.294,3211.1,3210.7,0.005405]
[1633096332409,18.18776531,3211.5,3209.9,0.96209472]
[1633096332410,0.079913,3210.8,3209.9,0.96209472]
[1633096332606,4.67374,3210.6,3210.0,0.59461088]
[1633096332806,4.67374,3210.6,3210.2,0.73445064]
[1633096333006,4.67374,3210.6,3210.3,0.59461236]
[1633096333209,4.67374,3210.6,3210.3,0.60301736]
[1633096333409,4.67374,3210.6,3210.4,0.60294441]
[1633096333607,4.67374,3210.6,3210.4,0.008405]
[1633096333808,4.67374,3210.6,3210.5,0.008405]
[1633096334008,4.67374,3210.6,3210.3,0.008405]
[1633096334209,4.67374,3210.6,3210.4,0.59449116]
[1633096334607,4.67374,3210.6,3210.5,0.008405]
[1633096335010,4.67374,3210.6,3210.3,0.008405]
[1633096335808,3.2171474,3210.5,3210.3,0.008405]
[1633096336011,3.2171474,3210.5,3210.1,0.008405]
[1633096336210,6.23165,3210.7,3210.2,0.69753278]
[1633096336410,6.23165,3210.7,3209.9,0.011405]
[1633096336411,0.95356935,3210.4,3209.9,0.011405]
[1633096336613,0.95356935,3210.4,3210.0,0.003]
[1633096336617,3.35392082,3210.3,3210.0,0.003]
[1633096336812,0.95356935,3210.4,3210.0,0.003]
[1633096337016,0.95356935,3210.4,3210.2,0.009]
[1633096337611,1.03875365,3210.3,3210.2,0.009]
[1633096337811,7.27112365,3210.3,3210.2,0.009]
[1633096338010,7.27112365,3210.3,3209.9,0.012]
[1633096339687,0.00116968,3210.3,3209.9,0.012]
[1633096341379,0.8750993,3210.2,3209.9,0.012]
[1633096341777,0.00116968,3210.3,3209.9,0.012]
[1633096343778,1.03686742,3210.1,3209.9,0.012]
[1633096344378,1.03686742,3210.1,3209.9,0.02093394]
[1633096344579,0.00116968,3210.3,3209.9,0.02093394]
[1633096344784,0.00116968,3210.3,3210.0,0.012]
[1633096345681,0.00116968,3210.3,3210.0,0.75911591]
[1633096345882,0.00116968,3210.3,3210.0,0.012]
[1633096346079,0.00116968,3210.3,3210.1,0.009]
[1633096346480,0.00116968,3210.3,3210.0,0.012]
[1633096346679,1.01455955,3210.3,3210.0,0.012]
[1633096347681,4.67368,3210.2,3210.0,0.012]
[1633096348081,0.00116968,3210.3,3210.0,0.012]
[1633096349281,0.00116968,3210.3,3210.0,3.1273698]
[1633096349681,0.00116968,3210.3,3210.1,0.009]
[1633096351684,0.00116968,3210.3,3210.2,0.97171303]
[1633096352085,0.00116968,3210.3,3210.2,0.98071303]
[1633096353686,0.00116968,3210.3,3210.2,2.01273837]
[1633096353887,0.00116968,3210.3,3210.2,0.98071303]
[1633096359184,0.00116968,3210.3,3210.2,0.009]
[1633096359386,0.00116968,3210.3,3210.0,3.0273698]
[1633096359790,0.00116968,3210.3,3210.0,0.003]
[1633096359993,4.86202669,3210.3,3210.0,0.003]
[1633096360190,0.89068656,3210.1,3210.0,0.003]
[1633096360388,0.00116968,3210.3,3210.0,0.003]
[1633096360588,4.67348,3210.2,3210.0,0.003]
[1633096362792,0.00116968,3210.3,3210.0,0.003]
[1633096364590,4.67417968,3210.3,3210.0,0.003]
[1633096364990,4.67417968,3210.3,3210.0,0.91388084]
[1633096365792,4.67417968,3210.3,3210.0,0.003]
[1633096366790,4.67417968,3210.3,3210.0,0.82610916]
[1633096368394,4.67417968,3210.3,3210.0,0.003]
[1633096368595,7.8741853,3210.3,3210.0,0.003]
[1633096368992,4.67417968,3210.3,3210.0,0.003]
[1633096369593,4.67417968,3210.3,3209.9,0.73763234]
[1633096369995,4.67417968,3210.3,3209.8,0.97639938]
[1633096370195,3.27242489,3210.2,3209.8,0.97639938]
[1633096370595,0.00116968,3210.3,3209.8,0.97639938]
[1633096370798,4.67386,3210.0,3209.8,0.97639938]
[1633096370994,4.67386,3210.0,3209.8,0.006]
[1633096370995,16.65901525,3209.9,3209.8,0.006]
[1633096371204,3.60901525,3209.9,3209.8,0.006]
[1633096371594,1.847313,3210.0,3209.8,0.006]
[1633096371995,0.98016159,3209.9,3209.8,0.006]
[1633096372596,5.65445159,3209.9,3209.8,0.006]
[1633096372992,4.67429,3209.9,3209.8,0.006]
[1633096374393,7.0831243,3210.1,3209.8,0.006]
[1633096374596,7.0831243,3210.1,3209.9,3.1157215]
[1633096374597,0.8513043,3210.1,3209.9,3.1157215]
[1633096375404,0.00116968,3210.3,3209.9,3.1157215]
[1633096375594,4.67367,3210.1,3209.9,3.1157215]
[1633096378601,4.67481544,3210.1,3209.9,3.1157215]
[1633096380499,1.09899771,3210.0,3209.9,3.1157215]
[1633096380701,4.67481544,3210.1,3209.9,3.1157215]
[1633096381502,4.67481544,3210.1,3209.8,0.006]
[1633096382302,5.77587387,3210.1,3209.8,0.006]
[1633096383302,5.77587387,3210.1,3209.9,3.1156094]
[1633096383503,4.67481544,3210.1,3209.9,3.1156094]
[1633096384310,0.00114544,3210.1,3210.0,1.294]
[1633096384507,0.00114544,3210.1,3210.0,1.55957594]
[1633096384708,0.00114544,3210.1,3210.0,5.44230606]
[1633096385509,0.00114544,3210.1,3210.0,10.11455606]
[1633096385905,0.00114544,3210.1,3210.0,4.14830606]
[1633096386310,0.00114544,3210.1,3210.0,1.4675515]
[1633096386705,0.00114544,3210.1,3210.0,0.26557594]
[1633096390508,0.00114544,3210.1,3210.0,0.27450965]
[1633096391708,0.00114544,3210.1,3210.0,0.00893371]
[1633096393716,3.22403955,3210.1,3210.0,0.00893371]
[1633096393914,0.00114544,3210.1,3210.0,0.00893371]
[1633096394716,0.00114544,3210.1,3210.0,1.00709262]
[1633096394915,0.00114544,3210.1,3210.0,0.89460074]
[1633096397516,0.00114544,3210.1,3210.0,1.83710474]
[1633096397733,0.003,3210.5,3210.1,6.85]
[1633096397940,0.003,3210.5,3210.2,0.193153]
[1633096398123,0.003,3210.5,3210.3,4.6714]
[1633096398318,0.003,3210.5,3210.4,0.15]
[1633096398718,0.003,3210.5,3210.4,2.39751945]
[1633096399519,0.003,3210.5,3210.4,0.15]
[1633096399720,0.00409096,3210.5,3210.4,0.15]
[1633096403123,0.00409096,3210.5,3210.2,3.1142606]
[1633096404121,0.00409096,3210.5,3210.3,1.16433163]
[1633096404322,0.00409096,3210.5,3210.2,3.1142606]
[1633096406323,0.00409096,3210.5,3210.3,0.70162755]
[1633096408125,0.00409096,3210.5,3210.3,0.96720349]
[1633096408324,0.00409096,3210.5,3210.4,0.71347971]
[1633096408924,0.00409096,3210.5,3210.4,1.79976622]
[1633096409924,0.00409096,3210.5,3210.4,2.06534216]
[1633096410324,0.00409096,3210.5,3210.4,0.97905565]
[1633096411129,0.00409096,3210.5,3210.0,0.27450965]
[1633096411397,1.07250922,3210.2,3210.0,0.00893371]
[1633096411526,0.00409096,3210.5,3210.0,0.00893371]
[1633096411725,1.70804267,3210.4,3210.0,0.00893371]
[1633096412125,4.67339,3210.2,3210.0,0.00893371]
[1633096413728,5.55057384,3210.2,3210.0,0.00893371]
[1633096413927,4.67339,3210.2,3210.0,0.00893371]
[1633096414930,5.64462718,3210.2,3210.0,0.00893371]
[1633096415328,4.67339,3210.2,3210.0,0.00893371]
[1633096416329,1.05617839,3210.1,3210.0,0.00893371]
[1633096416527,4.67339,3210.2,3210.0,0.00893371]
[1633096419933,3.29905791,3210.1,3210.0,0.00893371]
[1633096420139,4.67339,3210.2,3210.0,0.00893371]
[1633096420394,1.70486479,3210.1,3210.0,0.00893371]
[1633096420732,4.67442435,3210.2,3210.0,0.00893371]
[1633096421731,4.67442435,3210.2,3209.8,0.006]
[1633096421732,4.67442435,3210.2,3209.6,0.70806317]
[1633096421932,4.67442435,3210.2,3209.7,0.71374166]
[1633096422533,4.67442435,3210.2,3209.5,3.1245018]
[1633096422735,4.67442435,3210.2,3209.6,0.7137336]
[1633096423333,5.40978206,3210.0,3209.6,0.7137336]
[1633096424734,4.6736,3210.0,3209.6,0.7137336]
[1633096424934,4.67432435,3210.2,3209.6,0.7137336]
[1633096425737,4.67432435,3210.2,3209.9,0.79791849]
[1633096426137,0.00103435,3210.2,3209.9,3.91315169]
[1633096426338,0.00103435,3210.2,3210.0,0.71355089]
[1633096427135,0.00103435,3210.2,3210.1,1.1120284]
[1633096427335,0.00103435,3210.2,3210.1,0.71347096]
[1633096427534,0.00103435,3210.2,3210.1,0.71349411]
[1633096427734,0.00103435,3210.2,3210.0,0.71349736]
[1633096427937,0.00103435,3210.2,3210.1,0.71350154]
[1633096428136,0.00103435,3210.2,3210.1,0.7135311]
[1633096428335,0.00103435,3210.2,3210.0,0.71355945]
[1633096430737,0.76343334,3210.2,3210.0,0.71355945]
[1633096430937,0.00103435,3210.2,3210.0,0.71355945]
[1633096431540,0.00103435,3210.2,3210.1,0.26557594]
[1633096431739,0.00103435,3210.2,3210.1,0.97925404]
[1633096432403,0.00103435,3210.2,3210.1,1.89037329]
[1633096434042,0.00103435,3210.2,3210.1,0.97925404]
[1633096435243,0.00103435,3210.2,3210.1,2.18446465]
[1633096436512,0.00103435,3210.2,3210.1,3.47846465]
[1633096436914,0.00103435,3210.2,3210.1,5.93831013]
[1633096438613,0.00103435,3210.2,3210.1,9.85737465]
[1633096439613,0.00103435,3210.2,3210.1,9.80737465]
[1633096440615,0.00103435,3210.2,3210.1,8.51337465]
[1633096441421,0.00103435,3210.2,3210.1,7.30816404]
[1633096441616,0.00103435,3210.2,3210.0,5.33512305]
[1633096441617,1.17974786,3210.1,3210.0,1.27975024]
[1633096441817,1.17974786,3210.1,3209.4,1.83916987]
[1633096441818,1.17974786,3210.1,3209.5,0.009]
[1633096441819,4.64020527,3210.1,3209.5,0.009]
[1633096442217,1.17974786,3210.1,3209.5,0.009]
[1633096442416,1.17974786,3210.1,3209.6,1.14333894]
[1633096442617,1.17974786,3210.1,3209.5,0.009]
[1633096442618,0.75195237,3210.0,3209.5,0.009]
[1633096443217,0.75195237,3210.0,3209.5,3.1247235]
[1633096443218,3.9323114,3210.0,3209.5,3.1247235]
[1633096443616,0.75195237,3210.0,3209.5,4.23273297]
[1633096444018,0.75195237,3210.0,3209.5,3.1247235]
[1633096444618,5.42545237,3210.0,3209.5,3.1247235]
[1633096444823,5.42545237,3210.0,3209.5,0.009]
[1633096445219,0.75195237,3210.0,3209.5,0.009]
[1633096446221,0.75195237,3210.0,3209.5,3.1244808]
[1633096447022,5.42528237,3210.0,3209.5,3.1244808]
[1633096447221,0.75195237,3210.0,3209.5,3.1244808]
[1633096448122,5.42530237,3210.0,3209.5,3.1244808]
[1633096448722,0.75195237,3210.0,3209.5,3.1244808]
[1633096449524,1.17974786,3210.1,3209.5,3.1244808]
[1633096450327,5.85300786,3210.1,3209.5,3.1244808]
[1633096450523,5.85300786,3210.1,3209.7,1.21150386]
[1633096450725,5.85300786,3210.1,3209.9,4.451843]
[1633096450726,1.17974786,3210.1,3209.9,4.451843]
[1633096450925,1.17974786,3210.1,3209.9,3.157843]
[1633096451126,1.17974786,3210.1,3210.0,10.61557594]
[1633096451326,1.17974786,3210.1,3210.0,2.74638425]
[1633096451924,1.17974786,3210.1,3209.8,3.1148974]
[1633096452130,1.17974786,3210.1,3209.5,0.009]
[1633096452723,1.17974786,3210.1,3209.6,1.17725531]
[1633096452923,0.86566426,3209.8,3209.6,1.17725531]
[1633096453129,0.86566426,3209.8,3209.5,3.1245544]
[1633096453326,1.17974786,3210.1,3209.5,3.1245544]
[1633096453726,1.17974786,3210.1,3209.9,0.00832623]
[1633096454323,6.70745178,3210.1,3209.9,0.00832623]
[1633096455324,2.03394178,3210.1,3209.9,0.00832623]
[1633096457129,1.17974786,3210.1,3209.9,0.00832623]
[1633096457325,1.17974786,3210.1,3210.0,0.26557594]
[1633096458125,1.17974786,3210.1,3210.0,2.19049037]
[1633096458526,1.17974786,3210.1,3210.0,1.18472399]
[1633096458725,1.17974786,3210.1,3209.9,7.79606783]
[1633096459324,1.17974786,3210.1,3209.9,3.12362783]
[1633096459525,0.75621545,3210.0,3209.9,3.12362783]
[1633096459924,1.17974786,3210.1,3209.9,3.12362783]
[1633096467734,1.17974786,3210.1,3210.0,0.26557594]
[1633096468131,0.00103435,3210.2,3210.1,14.21295605]
[1633096468336,0.00103435,3210.2,3210.1,0.96295605]
[1633096468533,0.00103435,3210.2,3210.1,1.22853199]
[1633096469337,0.00103435,3210.2,3210.1,2.52253199]
[1633096469534,0.00103435,3210.2,3210.1,7.19424199]
[1633096470535,0.00103435,3210.2,3210.1,5.90024199]
[1633096470934,0.00103435,3210.2,3210.1,5.63466605]
[1633096471736,0.00103435,3210.2,3210.1,6.33966211]
[1633096473939,0.00103435,3210.2,3210.1,1.66795211]
[1633096475140,0.00103435,3210.2,3210.1,2.96195211]
[1633096475940,0.003,3210.5,3210.3,3.11354]
[1633096476141,0.003,3210.5,3210.4,16.53596852]
[1633096476340,0.003,3210.5,3210.4,4.71716962]
[1633096476539,0.003,3211.0,3210.5,13.85]
[1633096476739,0.003,3211.0,3210.8,0.043153]
[1633096476938,0.003,3211.0,3210.9,1.66864651]
[1633096477339,0.003,3211.0,3210.9,8.77216041]
[1633096478640,0.003,3211.0,3210.9,6.33906651]
[1633096478841,0.003,3211.0,3210.9,0.15]
[1633096479039,0.003,3211.0,3210.7,3.1136096]
[1633096479842,0.003,3211.0,3210.8,2.94912223]
[1633096480041,0.003,3211.0,3210.9,0.70419299]
[1633096480241,0.003,3211.0,3210.7,3.1136096]
[1633096480640,0.003,3211.0,3210.8,0.87127835]
[1633096480840,0.003,3211.0,3210.9,0.88313315]
[1633096482043,0.003,3211.5,3210.9,0.88313315]
[1633096482247,0.003,3211.5,3210.8,0.87127835]
[1633096482644,0.003,3211.5,3210.6,0.15]
[1633096483243,0.003,3211.5,3210.7,0.94996488]
[1633096483447,0.003,3211.5,3210.7,4.06415488]
[1633096483646,0.003,3211.5,3210.8,0.7777883]
[1633096483844,0.003,3211.5,3210.9,3.1142]
[1633096484246,0.003,3211.5,3210.9,6.2284837]
[1633096484645,0.00108913,3211.4,3210.9,6.2284837]
[1633096484848,0.00108913,3211.4,3211.0,1.11209429]
[1633096485046,0.00108913,3211.4,3211.0,0.00832304]
[1633096486246,0.00108913,3211.4,3211.1,1.06472305]
[1633096486648,0.00108913,3211.4,3211.0,0.00832304]
[1633096487647,4.67238913,3211.4,3211.0,0.00832304]
[1633096489048,5.54904838,3211.4,3211.0,0.00832304]
[1633096489247,0.87774838,3211.4,3211.0,0.00832304]
[1633096489449,0.00108913,3211.4,3211.0,0.00832304]
[1633096489848,0.00108913,3211.4,3210.9,6.12748314]
[1633096490450,0.00108913,3211.4,3211.0,4.67084]
[1633096490648,0.00108913,3211.4,3211.2,1.03217323]
[1633096490848,0.00108913,3211.4,3210.9,6.12748314]
[1633096494455,0.00108913,3211.4,3211.0,3.11412]
[1633096494657,2.23723786,3211.2,3210.9,3.01328314]
[1633096494860,2.23723786,3211.2,3210.5,11.3044]
[1633096494861,0.079913,3211.0,3210.5,0.003]
[1633096495157,0.079913,3211.0,3210.4,0.003]
[1633096495617,0.079913,3211.0,3210.5,0.82963642]
[1633096496019,0.079913,3211.0,3210.5,0.83263642]
[1633096496216,0.00107303,3211.1,3210.5,0.83263642]
[1633096497216,0.00107303,3211.1,3210.6,3.11445]
[1633096497420,4.67290303,3211.1,3210.6,6.22909]
[1633096497823,4.67290303,3211.1,3210.7,3.1145021]
[1633096498019,4.67290303,3211.1,3210.5,0.83263642]
[1633096498422,0.71345191,3210.9,3210.5,0.83263642]
[1633096498621,4.67254,3210.7,3210.5,0.003]
[1633096499020,4.67254,3210.7,3210.2,3.1179889]
[1633096499221,4.67254,3210.7,3210.3,0.003]
[1633096499820,4.67254,3210.7,3210.4,0.91294534]
[1633096500221,4.67254,3210.7,3210.5,0.003]
[1633096500622,4.67286,3210.5,3210.3,0.003]
[1633096501521,4.67286,3210.5,3210.4,0.87430173]
[1633096501725,4.67286,3210.7,3210.4,0.87430173]
[1633096501923,4.67286,3210.7,3210.4,0.87730173]
[1633096502121,0.43877842,3211.0,3210.5,0.003]
[1633096503126,1.48804841,3211.0,3210.5,0.003]
[1633096503323,1.48804841,3211.0,3210.6,3.1148957]
[1633096503524,1.48804841,3211.0,3210.6,6.2296157]
[1633096504324,4.67257,3210.8,3210.6,6.2296157]
[1633096505725,0.00100837,3210.7,3210.6,6.2296157]
[1633096505926,0.00100837,3210.7,3210.6,3.1148957]
[1633096506126,0.97705222,3210.7,3210.6,3.1148957]
[1633096506526,0.97705222,3210.7,3210.5,0.003]
[1633096506924,0.97705222,3210.7,3210.2,0.003]
[1633096507526,0.97705222,3210.7,3210.3,6.2302184]
[1633096507927,0.97705222,3210.7,3210.4,0.003]
[1633096508128,4.67267,3210.5,3210.4,0.003]
[1633096509130,0.00100837,3210.7,3210.4,0.01132495]
[1633096509527,0.00100837,3210.7,3210.5,0.01621714]
[1633096510328,0.00100837,3210.7,3210.5,3.13076674]
[1633096510536,0.00100837,3210.7,3210.5,6.24549674]
[1633096511133,0.00100837,3210.7,3210.6,0.93636715]
[1633096511329,0.00100837,3210.7,3210.5,6.24549674]
[1633096511532,0.00100837,3210.7,3210.6,7.75]
[1633096511728,0.00100837,3210.7,3210.6,0.41557594]
[1633096512130,0.003,3211.5,3210.7,9.35]
[1633096512431,0.003,3211.5,3211.4,0.91802243]
[1633096512631,0.003,3211.5,3211.4,0.72141255]
[1633096514029,0.003,3211.5,3211.4,1.72606896]
[1633096514430,0.003,3211.5,3211.4,1.73439144]
[1633096514828,0.003,3211.5,3211.4,1.74760858]
[1633096515029,0.003,3211.5,3211.4,0.74295217]
[1633096515433,0.003,3211.5,3211.4,0.02153962]
[1633096517933,3.00024581,3211.5,3211.4,0.02153962]
[1633096518134,3.00024581,3211.5,3211.4,0.00833962]
[1633096518135,13.05024581,3211.5,3211.4,0.00833962]
[1633096518335,19.90989141,3211.5,3211.4,0.00833962]
[1633096518732,9.85989141,3211.5,3211.4,0.00833962]
[1633096518933,7.67319581,3211.5,3211.4,0.00833962]
[1633096519333,6.37919581,3211.5,3211.4,0.00833962]
[1633096519735,6.37919581,3211.5,3211.1,3.11491]
[1633096519939,0.003,3211.5,3211.2,0.15]
[1633096520134,0.003,3211.5,3211.4,0.00833962]
[1633096520333,0.003,3211.5,3211.4,0.15833962]
[1633096524239,1.11606693,3211.5,3211.4,0.15833962]
[1633096524637,2.81537804,3211.5,3211.4,0.15833962]
[1633096524836,3.63535762,3211.5,3211.4,0.15833962]
[1633096525036,8.30657762,3211.5,3211.4,0.15833962]
[1633096525238,8.30668279,3211.5,3211.4,0.15833962]
[1633096526238,2.52239586,3211.5,3211.4,0.15833962]
[1633096526440,0.003,3211.5,3211.4,0.15833962]
[1633096526638,0.003,3211.5,3211.4,1.45233962]
[1633096527237,0.003,3211.5,3211.4,0.15833962]
[1633096527442,0.003,3211.5,3211.4,4.82896962]
[1633096528641,0.003,3211.5,3211.4,0.15833962]
[1633096532541,0.003,3211.5,3211.1,3.11491]
[1633096532542,14.8,3211.4,3211.1,3.11491]
[1633096532740,0.15,3211.4,3211.1,3.11491]
[1633096533339,1.19909726,3211.2,3211.1,3.11491]
[1633096533941,0.85774052,3211.4,3211.1,3.11491]
[1633096534640,4.67195,3211.3,3211.1,3.11491]
[1633096534840,5.52322608,3211.3,3211.1,3.11491]
[1633096535039,4.62195,3211.3,3211.1,3.11491]
[1633096535841,0.85774052,3211.4,3211.1,3.11491]
[1633096536841,5.52947052,3211.4,3211.1,3.11491]
[1633096537844,1.6992197,3211.3,3211.1,3.11491]
[1633096538042,6.3711697,3211.3,3211.1,3.11491]
[1633096538245,4.67195,3211.3,3211.1,3.11491]
[1633096538644,0.00098522,3211.3,3211.1,3.11491]
[1633096542247,0.00098522,3211.3,3211.0,0.15]
[1633096542447,4.67292522,3211.3,3211.0,0.15]
[1633096542647,0.00098522,3211.3,3211.0,0.15]
[1633096543648,4.67287522,3211.3,3211.0,0.15]
[1633096543849,4.67287522,3211.3,3211.0,3.26477]
[1633096545248,0.97494112,3211.2,3211.0,3.26477]
[1633096545848,5.64716112,3211.2,3211.0,3.26477]
[1633096546050,5.64716112,3211.2,3211.0,0.15]
[1633096546051,14.77791122,3211.1,3211.0,0.15]
[1633096546251,14.77791122,3211.1,3210.5,0.003]